fUST/lending_fUST_20240830
["ID","MTS","AMOUNT","RATE_DAILY","PERIOD"]
[336692083,1725029442434,-500.0,0.00035616,31]
[336692084,1725029442444,-500.0,0.00035616,31]
[336692085,1725029442453,-500.0,0.00035616,31]
[336692086,1725029442463,-500.0,0.00035616,31]
[336692087,1725029442472,-500.0,0.00035616,31]
[336692088,1725029442481,-232.52979759,0.00035616,31]
[336692089,1725029442490,-500.0,0.00035616,31]
[336692090,1725029442500,-500.0,0.00035616,31]
[336692091,1725029442510,-500.0,0.00035616,31]
[336692092,1725029442519,-457.01059891,0.00035616,31]
[336692093,1725029442527,-151.0,0.00035616,14]
[336692094,1725029442537,-500.0,0.00035616,31]
[336692095,1725029442546,-502.85343993,0.00035616,31]
[336692096,1725029442555,-500.0,0.00035616,20]
[336692097,1725029442565,-550.69269132,0.00035616,31]
[336692098,1725029442574,-501.0901858,0.00035616,31]
[336692099,1725029442583,-500.0,0.00035616,31]
[336692100,1725029442593,-500.0,0.00035616,31]
[336692101,1725029442602,-500.0,0.00035616,31]
[336692102,1725029442611,-500.0,0.00035616,31]
[336692103,1725029442620,-181.40439459,0.00035616,31]
[336692104,1725029442629,-500.0,0.00035616,31]
[336692105,1725029442639,-503.43996752,0.00035616,31]
[336692106,1725029442648,-501.70415302,0.00035616,31]
[336692107,1725029442657,-500.0,0.00035616,31]
[336692108,1725029442667,-151.0,0.00035616,14]
[336692109,1725029442677,-500.0,0.00035616,31]
[336692110,1725029442686,-500.0,0.00035616,31]
[336692111,1725029442705,-500.87434867,0.00035616,31]
[336692112,1725029442716,-500.0,0.00035616,31]
[336692113,1725029442726,-500.0,0.00035616,31]
[336692114,1725029442736,-500.0,0.00035616,31]
[336692115,1725029442746,-502.44291627,0.00035616,31]
[336692116,1725029442757,-502.52473802,0.00035616,31]
[336692117,1725029442766,-500.0,0.00035616,31]
[336692118,1725029442776,-500.0,0.00035616,31]
[336692119,1725029442785,-501.82917077,0.00035616,31]
[336692120,1725029442795,-500.0,0.00035616,31]
[336692121,1725029442805,-398.615688,0.00035616,14]
[336692122,1725029442815,-504.79736891,0.00035616,31]
[336692123,1725029442824,-500.0,0.00035616,31]
[336692124,1725029442834,-398.615688,0.00035616,14]
[336692125,1725029442844,-500.0,0.00035616,31]
[336692126,1725029442854,-500.0,0.00035616,31]
[336692127,1725029442864,-209.47127129,0.00035616,31]
[336692128,1725029442874,-500.0,0.00035616,31]
[336692129,1725029442883,-2744.16,0.00035616,31]
[336692130,1725029442893,-500.0,0.00035616,31]
[336692131,1725029442903,-500.0,0.00035616,31]
[336692132,1725029442912,-507.05363032,0.00035616,31]
[336692133,1725029442922,-571.8025536,0.00035616,31]
[336692134,1725029442932,-501.01644731,0.00035616,31]
[336692135,1725029442942,-892.651893,0.00035616,14]
[336692136,1725029442954,-500.0,0.00035616,31]
[336692137,1725029442964,-500.0,0.00035616,31]
[336692138,1725029442974,-500.0,0.00035616,31]
[336692140,1725029442983,-502.2796137,0.00035616,31]
[336692142,1725029442993,-892.651893,0.00035616,14]
[336692143,1725029443003,-500.0,0.00035616,31]
[336692144,1725029443013,-500.0,0.00035616,31]
[336692145,1725029443022,-2690.67,0.00035616,31]
[336692146,1725029443031,-8345.448058,0.00035616,14]
[336692148,1725029443041,-500.0,0.00035616,31]
[336692150,1725029443051,-500.0,0.00035616,31]
[336692151,1725029443061,-8345.448058,0.00035616,14]
[336692152,1725029443070,-500.0,0.00035616,31]
[336692153,1725029443079,-500.0,0.00035616,31]
[336692154,1725029443089,-500.0,0.00035616,31]
[336692155,1725029443099,-500.0,0.00035616,31]
[336692156,1725029443109,-586.15322919,0.00035616,31]
[336692157,1725029443118,-2929.705759,0.00035616,14]
[336692158,1725029443128,-500.0,0.00035616,31]
[336692159,1725029443138,-2929.705759,0.00035616,14]
[336692160,1725029443148,-500.0,0.00035616,31]
[336692161,1725029443158,-500.0,0.00035616,31]
[336692162,1725029443167,-500.0,0.00035616,31]
[336692163,1725029443177,-500.0,0.00035616,31]
[336692164,1725029443186,-500.0,0.00035616,31]
[336692165,1725029443195,-500.0,0.00035616,31]
[336692166,1725029443204,-500.0,0.00035616,31]
[336692167,1725029443213,-206.497187,0.00035616,14]
[336692168,1725029443223,-181.75562581,0.00035616,31]
[336692169,1725029443366,-318.24437419,0.00035616,31]
[336692170,1725029443375,-500.0,0.00035616,31]
[336692171,1725029443384,-500.0,0.00035616,31]
[336692172,1725029443394,-297.258051,0.00035616,14]
[336692173,1725029443403,-500.0,0.00035616,31]
[336692174,1725029443412,-8912.52,0.00035616,8]
[336692175,1725029443421,-605.75300056,0.00035616,31]
[336692176,1725029443430,-500.0,0.00035616,31]
[336692177,1725029443439,-297.258051,0.00035616,14]
[336692178,1725029443449,-500.0,0.00035616,31]
[336692179,1725029443458,-206.497187,0.00035616,14]
[336692180,1725029443468,-790.74,0.00035616,31]
[336692181,1725029443477,-252.08937695,0.00035616,31]
[336692182,1725029443486,-500.0,0.00035616,31]
[336692183,1725029443495,-500.0,0.00035616,31]
[336692184,1725029443506,-500.0,0.00035616,31]
[336692185,1725029443516,-1061.97,0.00035616,21]
[336692186,1725029443525,-500.0,0.00035616,31]
[336692187,1725029443534,-500.0,0.00035616,31]
[336692188,1725029443543,-232.15259844,0.00035616,31]
[336692189,1725029443552,-500.0,0.00035616,31]
[336692190,1725029443561,-500.0,0.00035616,31]
[336692191,1725029443571,-500.0,0.00035616,31]
[336692192,1725029443580,-1325.50258,0.00035616,14]
[336692194,1725029443589,-500.0,0.00035616,31]
[336692196,1725029443599,-500.0,0.00035616,31]
[336692197,1725029443608,-1493.18,0.00035616,31]
[336692198,1725029443618,-1325.50258,0.00035616,14]
[336692199,1725029443628,-500.0,0.00035616,31]
[336692200,1725029443637,-500.0,0.00035616,31]
[336692201,1725029443646,-151.0,0.00035616,14]
[336692202,1725029443656,-500.0,0.00035616,31]
[336692203,1725029443665,-500.0,0.00035616,31]
[336692204,1725029443675,-500.0,0.00035616,31]
[336692205,1725029443684,-500.0,0.00035616,31]
[336692206,1725029443694,-500.0,0.00035616,31]
[336692207,1725029443704,-626.58753105,0.00035616,31]
[336692208,1725029443713,-500.0,0.00035616,31]
[336692209,1725029443722,-500.0,0.00035616,31]
[336692210,1725029443735,-500.0,0.00035616,31]
[336692211,1725029443745,-708.81,0.00035616,31]
[336692212,1725029443756,-500.0,0.00035616,31]
[336692213,1725029443765,-1410.37,0.00035616,31]
[336692214,1725029443775,-4451.447749,0.00035616,14]
[336692215,1725029443785,-500.0,0.00035616,31]
[336692216,1725029443794,-500.0,0.00035616,31]
[336692217,1725029443804,-4451.447749,0.00035616,14]
[336692218,1725029443814,-500.0,0.00035616,31]
[336692219,1725029443824,-955.93,0.00035616,31]
[336692220,1725029443834,-500.0,0.00035616,31]
[336692221,1725029443844,-500.0,0.00035616,31]
[336692222,1725029443853,-500.0,0.00035616,31]
[336692224,1725029443863,-1632.83264317,0.00035616,31]
[336692225,1725029443876,-883.75479709,0.00035616,31]
[336692226,1725029443888,-93.60255974,0.00035616,31]
[336692227,1725029443898,-405.59744026,0.00035616,31]
[336692228,1725029443997,-94.40255974,0.00035616,31]
[336692229,1725029444011,-500.0,0.00035616,31]
[336692230,1725029444020,-500.0,0.00035616,31]
[336692231,1725029444030,-500.0,0.00035616,31]
[336692232,1725029444040,-500.0,0.00035616,31]
[336692233,1725029444050,-500.0,0.00035616,31]
[336692234,1725029444059,-500.0,0.00035616,31]
[336692235,1725029444068,-500.0,0.00035616,31]
[336692236,1725029444078,-151.0,0.00035616,14]
[336692237,1725029444088,-500.0,0.00035616,31]
[336692238,1725029444097,-500.0,0.00035616,31]
[336692239,1725029444106,-879.23,0.00035616,31]
[336692240,1725029444115,-151.0,0.00035616,14]
[336692241,1725029444124,-1488.77,0.00035616,31]
[336692242,1725029444134,-500.0,0.00035616,31]
[336692243,1725029444143,-500.0,0.00035616,31]
[336692244,1725029444153,-500.0,0.00035616,31]
[336692245,1725029444162,-500.0,0.00035616,31]
[336692246,1725029444171,-500.0,0.00035616,31]
[336692247,1725029444181,-500.0,0.00035616,31]
[336692248,1725029444190,-500.0,0.00035616,31]
[336692249,1725029444199,-500.0,0.00035616,31]
[336692250,1725029444209,-500.0,0.00035616,31]
[336692251,1725029444223,-500.0,0.00035616,31]
[336692252,1725029444332,-500.0,0.00035616,31]
[336692253,1725029444342,-501.54345102,0.00035616,31]
[336692254,1725029444351,-995.7,0.00035616,31]
[336692255,1725029444361,-540.12,0.00035616,31]
[336692256,1725029444371,-500.0,0.00035616,2]
[336692257,1725029444380,-500.0,0.00035616,31]
[336692258,1725029444389,-1646.269602,0.00035616,14]
[336692259,1725029444399,-502.62228021,0.00035616,31]
[336692260,1725029444408,-500.0,0.00035616,31]
[336692261,1725029444417,-500.0,0.00035616,31]
[336692262,1725029444426,-500.0,0.00035616,31]
[336692263,1725029444437,-1646.269602,0.00035616,14]
[336692264,1725029444447,-500.0,0.00035616,31]
[336692265,1725029444457,-500.0,0.00035616,31]
[336692266,1725029444467,-500.0,0.00035616,31]
[336692267,1725029444476,-500.0,0.00035616,31]
[336692268,1725029444486,-500.0,0.00035616,31]
[336692269,1725029444495,-3533.15,0.00035616,31]
[336692270,1725029444508,-500.0,0.00035616,31]
[336692271,1725029444518,-151.0,0.00035616,14]
[336692272,1725029444529,-500.0,0.00035616,31]
[336692273,1725029444539,-500.0,0.00035616,31]
[336692274,1725029444548,-500.0,0.00035616,31]
[336692275,1725029444559,-151.0,0.00035616,14]
[336692276,1725029444568,-500.40273088,0.00035616,31]
[336692277,1725029444577,-1192.96,0.00035616,31]
[336692278,1725029444586,-500.0,0.00035616,31]
[336692279,1725029444595,-222.61379915,0.00035616,31]
[336692280,1725029444605,-500.0,0.00035616,31]
[336692281,1725029444616,-501.64840669,0.00035616,31]
[336692282,1725029444627,-500.0,0.00035616,31]
[336692283,1725029444636,-500.0,0.00035616,31]
[336692284,1725029444645,-500.0,0.00035616,2]
[336692285,1725029444655,-368.10877107,0.00035616,31]
[336692286,1725029444664,-500.0,0.00035616,31]
[336692287,1725029444673,-500.0,0.00035616,31]
[336692288,1725029444682,-3166.54,0.00035616,31]
[336692289,1725029444693,-500.0,0.00035616,31]
[336692290,1725029444702,-500.0,0.00035616,31]
[336692291,1725029444711,-500.0,0.00035616,31]
[336692292,1725029444720,-2643.26,0.00035616,31]
[336692293,1725029444730,-151.0,0.00035616,14]
[336692294,1725029444740,-151.0,0.00035616,14]
[336692295,1725029444749,-2515.85,0.00035616,31]
[336692296,1725029444763,-500.0,0.00035616,31]
[336692297,1725029444772,-500.0,0.00035616,31]
[336692298,1725029444782,-151.0,0.00035616,14]
[336692299,1725029444790,-500.0,0.00035616,31]
[336692300,1725029444800,-151.0,0.00035616,14]
[336692301,1725029444809,-2411.35,0.00035616,31]
[336692302,1725029444818,-500.0,0.00035616,31]
[336692303,1725029444829,-500.0,0.00035616,31]
[336692304,1725029444839,-500.0,0.00035616,31]
[336692305,1725029444849,-500.0,0.00035616,31]
[336692306,1725029444858,-500.0,0.00035616,31]
[336692307,1725029444867,-500.0,0.00035616,31]
[336692308,1725029444877,-2798.56073311,0.00035616,31]
[336692309,1725029444890,-953.61926689,0.00035616,31]
[336692310,1725029444900,-500.0,0.00035616,31]
[336692311,1725029444909,-500.0,0.00035616,31]
[336692312,1725029444919,-500.0,0.00035616,31]
[336692313,1725029444929,-500.0,0.00035616,31]
[336692314,1725029444940,-1392.532389,0.00035616,14]
[336692315,1725029444951,-500.0,0.00035616,31]
[336692316,1725029444961,-652.41,0.00035616,31]
[336692317,1725029444971,-183.07797234,0.00035616,31]
[336692318,1725029445086,-469.33202766,0.00035616,31]
[336692319,1725029445096,-500.0,0.00035616,31]
[336692320,1725029445106,-652.41,0.00035616,31]
[336692321,1725029445116,-652.41,0.00035616,31]
[336692322,1725029445125,-652.41,0.00035616,31]
[336692323,1725029445134,-652.41,0.00035616,31]
[336692324,1725029445144,-574.14604542,0.00035616,31]
[336692325,1725029445156,-78.26395458,0.00035616,31]
[336692326,1725029445166,-652.41,0.00035616,31]
[336692327,1725029445176,-1392.532389,0.00035616,14]
[336692328,1725029445186,-652.41,0.00035616,31]
[336692329,1725029445195,-652.41,0.00035616,31]
[336692330,1725029445206,-652.41,0.00035616,31]
[336692331,1725029445216,-652.41,0.00035616,31]
[336692332,1725029445229,-652.41,0.00035616,31]
[336692333,1725029445238,-652.41,0.00035616,31]
[336692334,1725029445248,-500.0,0.00035616,31]
[336692335,1725029445264,-652.41,0.00035616,31]
[336692336,1725029445274,-652.41,0.00035616,31]
[336692337,1725029445284,-652.41,0.00035616,31]
[336692338,1725029445293,-652.41,0.00035616,31]
[336692339,1725029445304,-652.41,0.00035616,31]
[336692340,1725029445313,-652.41,0.00035616,31]
[336692341,1725029445323,-652.41,0.00035616,31]
[336692342,1725029445332,-652.41,0.00035616,31]
[336692343,1725029445342,-500.0,0.00035616,31]
[336692344,1725029445352,-652.41,0.00035616,31]
[336692345,1725029445361,-652.41,0.00035616,31]
[336692346,1725029445371,-500.0,0.00035616,31]
[336692347,1725029445381,-500.0,0.00035616,31]
[336692348,1725029445391,-500.0,0.00035616,31]
[336692349,1725029445400,-215.99015,0.00035616,14]
[336692350,1725029445410,-215.99015,0.00035616,14]
[336692351,1725029445419,-500.0,0.00035616,31]
[336692352,1725029445429,-1253.32,0.00035616,31]
[336692353,1725029445438,-500.0,0.00035616,31]
[336692354,1725029445448,-215.99015,0.00035616,14]
[336692355,1725029445457,-215.99015,0.00035616,14]
[336692356,1725029445467,-502.48093956,0.00035616,31]
[336692357,1725029445476,-500.0,0.00035616,31]
[336692358,1725029445486,-500.0,0.00035616,31]
[336692359,1725029445495,-500.0,0.00035616,31]
[336692360,1725029445507,-1611.72830693,0.00035616,31]
[336692369,1725029461066,10000.0,0.00025,120]
[336692370,1725029464314,3551.0,0.00025,120]
[336692373,1725029537437,159.013801,0.00014247,2]
[336692382,1725029657267,157.704323,0.0001863,2]
[336692397,1725030198302,157.704323,0.0001863,2]
[336692400,1725030280873,190.39644,0.00014247,2]
[336692507,1725030634985,-190.39644,0.00020707,2]
[336692508,1725030634995,-150.0,0.00021,2]
[336692509,1725030635005,-465.00043762,0.00025987,2]
[336692510,1725030635014,-465.15475278,0.00025987,2]
[336692511,1725030635025,-226.855933,0.00026762,2]
[336692512,1725030635035,-190.39644,0.00027167,2]
[336692513,1725030635047,-300.0,0.00027279,2]
[336692515,1725030635057,-3421.0050386,0.0002728,2]
[336692516,1725030635072,-293.54570375,0.0002728,2]
[336692541,1725030638938,-3732.70711797,0.0002728,2]
[336692542,1725030639124,-309.52148208,0.0002728,2]
[336692543,1725030639135,-500.0,0.00027368,2]
[336692544,1725030639145,-312.21903177,0.00027422,2]
[336692545,1725030639157,-187.78096823,0.00027422,2]
[336692546,1725030639167,-500.0,0.00027449,2]
[336692547,1725030639177,-178.160139,0.00027485,2]
[336692548,1725030639186,-195.77080027,0.0002761,2]
[336692549,1725030639210,-670.35589472,0.0002761,2]
[336692550,1725030639221,-178.160139,0.00027771,2]
[336692551,1725030639231,-178.160139,0.00028058,2]
[336692552,1725030639242,-174.9964494,0.00028118,2]
[336692553,1725030639252,-251.0,0.00028118,2]
[336692554,1725030639262,-500.0,0.00028217,2]
[336692555,1725030639272,-178.160139,0.00028344,2]
[336692556,1725030639282,-155.23428289,0.0002863,2]
[336692564,1725030640979,-22.92585611,0.0002863,2]
[336692566,1725030640989,-178.160139,0.00028917,2]
[336692568,1725030641000,-500.0,0.00029147,2]
[336692570,1725030641010,-500.0,0.00029232,2]
[336692572,1725030641021,-500.0,0.00029457,2]
[336692574,1725030641031,-3000.0,0.00029658,2]
[336692575,1725030641043,-500.0,0.00030386,7]
[336692576,1725030641056,-179.868606,0.00030517,2]
[336692577,1725030641065,-500.0,0.00031458,7]
[336692578,1725030641075,-500.0,0.00032112,7]
[336692579,1725030641085,-500.0,0.00032228,7]
[336692580,1725030641095,-150.0,0.00032303,14]
[336692581,1725030641104,-150.0,0.00032303,14]
[336692582,1725030641114,-200.0,0.00032303,14]
[336692583,1725030641123,-190.39644,0.00033626,2]
[336692584,1725030641133,-153.0,0.00034487,2]
[336692585,1725030641143,-1500.0,0.00035,2]
[336692586,1725030641154,-1500.0,0.00035,2]
[336692587,1725030641165,-1500.0,0.00035,2]
[336692588,1725030641176,-25448.2736734,0.00035369,10]
[336692589,1725030641186,-2000.0,0.00035496,2]
[336692590,1725030641195,-4457.29,0.00035496,3]
[336692591,1725030641205,-180.95,0.00035496,3]
[336692592,1725030641216,-3714.41,0.00035496,3]
[336692593,1725030641227,-500.0,0.00035505,7]
[336692594,1725030641237,-500.0,0.00035505,7]
[336692595,1725030641248,-500.0,0.00035505,7]
[336692596,1725030641258,-500.0,0.00035505,7]
[336692597,1725030641268,-500.0,0.00035505,7]
[336692598,1725030641279,-500.0,0.00035505,7]
[336692599,1725030641289,-500.0,0.00035505,7]
[336692600,1725030641300,-500.0,0.00035505,7]
[336692601,1725030641311,-500.0,0.00035505,7]
[336692602,1725030641322,-500.0,0.00035505,7]
[336692603,1725030641332,-500.0,0.00035505,7]
[336692604,1725030641343,-523.63413897,0.00035505,7]
[336692605,1725030641353,-500.0,0.00035505,7]
[336692606,1725030641363,-500.0,0.00035505,7]
[336692607,1725030641374,-500.0,0.00035505,7]
[336692608,1725030641389,-500.0,0.00035505,7]
[336692609,1725030641399,-500.0,0.00035505,7]
[336692610,1725030641410,-500.0,0.00035505,7]
[336692611,1725030641419,-500.0,0.00035505,7]
[336692612,1725030641429,-500.0,0.00035505,7]
[336692613,1725030641440,-500.0,0.00035505,7]
[336692614,1725030641450,-500.0,0.00035505,7]
[336692615,1725030641461,-500.0,0.00035505,7]
[336692616,1725030641471,-500.0,0.00035505,7]
[336692617,1725030641481,-500.0,0.00035505,7]
[336692618,1725030641491,-500.0,0.00035505,7]
[336692619,1725030641502,-500.0,0.00035505,7]
[336692620,1725030641512,-500.0,0.00035505,7]
[336692621,1725030641522,-500.0,0.00035505,7]
[336692622,1725030641532,-500.0,0.00035505,7]
[336692623,1725030641542,-500.0,0.00035505,7]
[336692624,1725030641558,-500.0,0.00035505,7]
[336692625,1725030641567,-500.0,0.00035505,7]
[336692626,1725030641578,-500.0,0.00035505,7]
[336692627,1725030641590,-998.86633086,0.00035505,2]
[336692628,1725030641603,-92515.07038275,0.00035506,4]
[336692629,1725030641616,-73759.68183221,0.00035506,4]
[336692653,1725030643746,-21714.99223549,0.00035506,4]
[336692654,1725030643791,-17900.884958,0.00035506,4]
[336692655,1725030643807,-420.36615124,0.00035506,4]
[336692657,1725030644319,-37649.66931731,0.00035506,4]
[336692658,1725030644330,-160.2409528,0.00035515,7]
[336692659,1725030644340,-477.14775651,0.00035515,7]
[336692660,1725030644350,-500.0,0.00035515,7]
[336692661,1725030644361,-500.0,0.00035515,7]
[336692662,1725030644372,-500.0,0.00035515,7]
[336692663,1725030644381,-583.04036667,0.00035515,7]
[336692664,1725030644391,-500.0,0.00035515,7]
[336692665,1725030644401,-500.0,0.00035515,7]
[336692666,1725030644410,-383.321666,0.00035515,7]
[336692779,1725030648866,-574.91331322,0.00035416,2]
[336692780,1725030648875,-3095.34,0.00035506,3]
[336692781,1725030648885,-116.678334,0.00035515,7]
[336692782,1725030648894,-500.0,0.00035515,7]
[336692783,1725030648904,-500.0,0.00035515,7]
[336692784,1725030648914,-500.0,0.00035515,7]
[336692785,1725030648923,-500.0,0.00035515,7]
[336692786,1725030648933,-27.86835278,0.00035516,5]
[336692787,1725030648945,-669.3922254,0.00035516,5]
[336692788,1725030648957,-2020.95,0.00035516,5]
[336692789,1725030648968,-309.67712516,0.00035516,5]
[336692815,1725030918155,355.589691,0.00014247,2]
[336692824,1725031043195,500.0,0.00025,120]
[336692842,1725031397552,8561.2,0.00015,2]
[336692852,1725031723460,12076.18107451,0.000129,2]
[336692902,1725031835907,-354.159228,0.0001863,2]
[336692903,1725031835918,-205.211937,0.00019041,2]
[336692904,1725031835927,-981.84228008,0.00019452,2]
[336692905,1725031835939,-938.22642531,0.00019452,2]
[336692921,1725031838337,-1109.17186169,0.00019452,2]
[336692922,1725031838350,-432.85647337,0.00019452,2]
[336692923,1725031838363,-1317.05759386,0.00019452,2]
[336692924,1725031838372,-170.875175,0.00019741,2]
[336692925,1725031838382,-3000.0,0.00019844,2]
[336692926,1725031838393,-300.0,0.00019899,2]
[336692927,1725031838403,-1904.75601627,0.000199,2]
[336692928,1725031838414,-251.0,0.00019917,2]
[336692929,1725031838424,-6833.34373672,0.0002,2]
[336692930,1725031838437,-928.73888676,0.0002,2]
[336692931,1725031838454,-420.30828837,0.0002,2]
[336692952,1725031840250,-457.21163051,0.0002,2]
[336692960,1725031843103,-25006.54978,0.0002,2]
[336692961,1725031843115,-11381.11560777,0.0002,2]
[336692962,1725031843177,-20419.39421443,0.0002,2]
[336692963,1725031843280,-18865.09153197,0.0002,2]
[336692964,1725031843290,-1457.26898525,0.0002,11]
[336692965,1725031843299,-302.45563732,0.0002,2]
[336692966,1725031843309,-867.128745,0.00020043,2]
[336692967,1725031843319,-223.04733595,0.00020043,2]
[336692994,1725031846127,-492.11937563,0.00020043,2]
[336692995,1725031846146,-14141.20936132,0.00020043,2]
[336692996,1725031846156,-302.45563732,0.000202,2]
[336692997,1725031846166,-111.72213857,0.00020376,2]
[336692998,1725031846181,-388.27786143,0.00020376,2]
[336692999,1725031846191,-500.0,0.00020376,2]
[336693001,1725031846200,-500.0,0.00020376,2]
[336693002,1725031846209,-500.0,0.00020376,2]
[336693003,1725031846218,-202.36341389,0.00020376,2]
[336693004,1725031846227,-10944.91587032,0.00020377,2]
[336693005,1725031846236,-302.45563732,0.000204,2]
[336693006,1725031846247,-500.0,0.00020575,2]
[336693007,1725031846256,-500.0,0.00020575,2]
[336693008,1725031846265,-500.0,0.00020575,2]
[336693009,1725031846275,-302.45563732,0.000206,2]
[336693010,1725031846284,-355.589691,0.00020707,2]
[336693011,1725031846293,-302.45563732,0.000208,2]
[336693012,1725031846303,-3000.0,0.00021,2]
[336693013,1725031846314,-453.68345598,0.00021,4]
[336693015,1725031846324,-3000.0,0.0002101,2]
[336693016,1725031846333,-3000.0,0.0002102,2]
[336693017,1725031846343,-3000.0,0.0002103,2]
[336693018,1725031846353,-3000.0,0.0002104,2]
[336693019,1725031846362,-3000.0,0.0002105,2]
[336693020,1725031846372,-3000.0,0.0002106,2]
[336693021,1725031846382,-3000.0,0.0002107,2]
[336693022,1725031846391,-3000.0,0.0002108,2]
[336693023,1725031846401,-3000.0,0.0002109,2]
[336693024,1725031846411,-3000.0,0.000211,2]
[336693025,1725031846421,-3000.0,0.0002111,2]
[336693026,1725031846431,-3000.0,0.0002112,2]
[336693027,1725031846452,-500.0,0.00021123,2]
[336693028,1725031846463,-534.0,0.00021123,2]
[336693029,1725031846474,-3000.0,0.0002113,2]
[336693030,1725031846484,-3000.0,0.0002114,2]
[336693031,1725031846494,-154.45372973,0.0002115,2]
[336693032,1725031846507,-3000.0,0.0002115,2]
[336693033,1725031846519,-500.0,0.0002115,2]
[336693034,1725031846530,-500.0,0.0002115,2]
[336693035,1725031846542,-150.05569572,0.0002115,2]
[336693036,1725031846668,-3000.0,0.0002116,2]
[336693037,1725031846678,-3000.0,0.0002117,2]
[336693038,1725031846688,-3000.0,0.0002118,2]
[336693039,1725031846698,-3000.0,0.0002119,2]
[336693040,1725031846709,-5693.415944,0.000212,2]
[336693041,1725031846719,-200.20752394,0.000212,4]
[336693042,1725031846730,-350.26928938,0.00021698,2]
[336693043,1725031846742,-240.0,0.00021889,2]
[336693044,1725031846754,-354.159228,0.00024859,2]
[336693045,1725031846764,-465.00773856,0.00025987,2]
[336693046,1725031846773,-1000.0,0.00026,7]
[336693047,1725031846783,-500.0,0.00026828,2]
[336693048,1725031846793,-355.589691,0.00027167,2]
[336693049,1725031846803,-500.0,0.00029447,2]
[336693050,1725031846814,-867.128745,0.00030064,2]
[336693051,1725031846824,-500.0,0.000301,7]
[336693052,1725031846835,-500.0,0.00030353,7]
[336693053,1725031846844,-500.0,0.00030497,7]
[336693054,1725031846854,-1904.75601626,0.00030614,2]
[336693055,1725031846864,-500.0,0.00030787,7]
[336693056,1725031846874,-500.0,0.00030821,7]
[336693057,1725031846884,-1000.0,0.00031,31]
[336693058,1725031846894,-354.159228,0.00031089,2]
[336693059,1725031846903,-500.0,0.00031361,7]
[336693060,1725031846915,-500.0,0.00031454,7]
[336693061,1725031846925,-125298.47936947,0.00031652,4]
[336693107,1725032027588,428.624939,0.00014247,2]
[336693128,1725032238134,155.0,0.00015,2]
[336693130,1725032243203,155.0,0.00015,2]
[336693131,1725032247802,155.0,0.00015,2]
[336693134,1725032252420,155.0,0.00015,2]
[336693135,1725032257148,155.0,0.00015,2]
[336693136,1725032261776,155.24673088,0.00015,2]
[336693158,1725032939729,573.680698,0.0001,2]
[336693190,1725033031998,-844.96473038,0.0001863,2]
[336693191,1725033032009,-354.159228,0.0001863,2]
[336693193,1725033032018,-315.35351058,0.00019,2]
[336693195,1725033032028,-428.624939,0.00020707,2]
[336693197,1725033032038,-150.0,0.00021,2]
[336693199,1725033032048,-354.159228,0.00024859,2]
[336693201,1725033032057,-464.08836404,0.00025,2]
[336693202,1725033032069,-235.91163596,0.00025,2]
[336693203,1725033032078,-433.564373,0.00025576,2]
[336693204,1725033032088,-2585.7269119,0.0002572,2]
[336693205,1725033032098,-1003.4648605,0.00025752,2]